lending/lending_fUSD_20250425
["ID","MTS","AMOUNT","RATE_DAILY","PERIOD"]
[358978113,1745599856982,-524.69799268,0.0003041,2]
[358978114,1745599856991,-965.29,0.0003041,2]
[358978115,1745599857001,-500.0,0.0003041,2]
[358978116,1745599857011,-570.04,0.0003041,2]
[358978117,1745599857021,-500.0,0.0003041,2]
[358978118,1745599857031,-500.0,0.0003041,2]
[358978119,1745599857041,-500.0,0.0003041,2]
[358978120,1745599857051,-500.0,0.0003041,2]
[358978121,1745599857061,-500.0,0.0003041,2]
[358978122,1745599857071,-1144.66,0.0003041,2]
[358978123,1745599857081,-500.0,0.0003041,2]
[358978124,1745599857091,-500.0,0.0003041,2]
[358978125,1745599857102,-559.33585552,0.0003041,2]
[358978126,1745599857112,-500.0,0.0003041,2]
[358978127,1745599857122,-500.0,0.0003041,2]
[358978128,1745599857133,-500.0,0.0003041,2]
[358978129,1745599857143,-500.0,0.0003041,2]
[358978130,1745599857153,-500.0,0.0003041,2]
[358978131,1745599857163,-500.0,0.0003041,2]
[358978132,1745599857174,-500.0,0.0003041,2]
[358978133,1745599857185,-500.0,0.0003041,2]
[358978134,1745599857196,-500.0,0.0003041,2]
[358978135,1745599857206,-500.0,0.0003041,2]
[358978136,1745599857217,-520.78,0.0003041,2]
[358978137,1745599857464,-500.0,0.0003041,2]
[358978138,1745599857476,-893.12,0.0003041,2]
[358978139,1745599857486,-1114.74,0.0003041,2]
[358978140,1745599857496,-576.79037512,0.0003041,2]
[358978141,1745599857506,-559.24645787,0.0003041,2]
[358978142,1745599857515,-500.0,0.0003041,2]
[358978143,1745599857525,-500.0,0.0003041,2]
[358978144,1745599857534,-500.0,0.0003041,2]
[358978145,1745599857543,-500.0,0.0003041,2]
[358978146,1745599857553,-500.0,0.0003041,2]
[358978147,1745599857562,-500.0,0.0003041,2]
[358978148,1745599857572,-500.0,0.0003041,2]
[358978149,1745599857581,-500.0,0.0003041,2]
[358978150,1745599857591,-500.0,0.0003041,2]
[358978151,1745599857601,-500.0,0.0003041,2]
[358978152,1745599857610,-987.63,0.0003041,2]
[358978153,1745599857620,-797.02,0.0003041,2]
[358978154,1745599857630,-500.0,0.0003041,2]
[358978155,1745599857639,-500.0,0.0003041,2]
[358978156,1745599857648,-845.23,0.0003041,2]
[358978157,1745599857658,-500.0,0.0003041,2]
[358978158,1745599857668,-500.0,0.0003041,2]
[358978159,1745599857678,-500.0,0.0003041,2]
[358978160,1745599857688,-500.0,0.0003041,2]
[358978161,1745599857699,-172.80660913,0.0003041,2]
[358978162,1745599857709,-500.0,0.0003041,2]
[358978163,1745599857718,-500.0,0.0003041,2]
[358978164,1745599857728,-500.43317415,0.0003041,2]
[358978165,1745599857738,-500.0,0.0003041,2]
[358978166,1745599857748,-326.01,0.0003041,2]
[358978167,1745599857757,-500.0,0.0003041,2]
[358978168,1745599857767,-500.0,0.0003041,2]
[358978169,1745599857777,-902.14,0.0003041,2]
[358978170,1745599857787,-500.0,0.0003041,2]
[358978171,1745599857799,-500.0,0.0003041,2]
[358978172,1745599857808,-1138.72,0.0003041,2]
[358978173,1745599857817,-585.95866082,0.0003041,2]
[358978174,1745599857827,-500.0,0.0003041,2]
[358978175,1745599857837,-531.57118819,0.0003041,2]
[358978176,1745599857847,-500.0,0.0003041,2]
[358978177,1745599857858,-500.0,0.0003041,2]
[358978178,1745599857868,-500.0,0.0003041,2]
[358978179,1745599857878,-966.74,0.0003041,2]
[358978180,1745599857888,-500.0,0.0003041,2]
[358978181,1745599857898,-500.0,0.0003041,2]
[358978182,1745599857907,-2726.69,0.0003041,2]
[358978183,1745599857917,-1253.57,0.0003041,2]
[358978184,1745599857926,-569.90314377,0.0003041,2]
[358978185,1745599857936,-500.0,0.0003041,2]
[358978186,1745599857946,-500.0,0.0003041,2]
[358978187,1745599857956,-511.30064413,0.0003041,2]
[358978188,1745599857965,-1337.81,0.0003041,2]
[358978189,1745599857974,-729.86,0.0003041,2]
[358978190,1745599857984,-500.0,0.0003041,2]
[358978191,1745599857993,-753.54,0.0003041,2]
[358978192,1745599858002,-500.0,0.0003041,2]
[358978193,1745599858012,-500.0,0.0003041,2]
[358978194,1745599858022,-638.94,0.0003041,2]
[358978195,1745599858031,-548.46153493,0.0003041,2]
[358978196,1745599858041,-522.94,0.0003041,2]
[358978197,1745599858050,-500.0,0.0003041,2]
[358978198,1745599858061,-500.0,0.0003041,2]
[358978199,1745599858074,-500.0,0.0003041,2]
[358978200,1745599858084,-500.0,0.0003041,2]
[358978201,1745599858095,-500.0,0.0003041,2]
[358978202,1745599858105,-1023.5,0.0003041,2]
[358978203,1745599858115,-503.04,0.0003041,2]
[358978204,1745599858126,-329.9151587,0.0003041,2]
[358978205,1745599858137,-781.42,0.0003041,2]
[358978206,1745599858148,-500.0,0.0003041,2]
[358978207,1745599858160,-500.0,0.0003041,2]
[358978208,1745599858171,-500.0,0.0003041,2]
[358978209,1745599858181,-500.0,0.0003041,2]
[358978210,1745599858192,-581.58012516,0.0003041,2]
[358978211,1745599858201,-500.0,0.0003041,2]
[358978212,1745599858212,-500.0,0.0003041,2]
[358978213,1745599858223,-560.54,0.0003041,2]
[358978214,1745599858233,-500.0,0.0003041,2]
[358978215,1745599858243,-510.84515895,0.0003041,2]
[358978216,1745599858253,-621.44,0.0003041,2]
[358978217,1745599858263,-500.0,0.0003041,2]
[358978218,1745599858273,-614.21,0.0003041,2]
[358978219,1745599858282,-154.213775,0.0003041,7]
[358978220,1745599858292,-500.0,0.0003041,2]
[358978221,1745599858301,-525.30867834,0.0003041,2]
[358978222,1745599858311,-1103.29,0.0003041,2]
[358978223,1745599858321,-924.67,0.0003041,2]
[358978224,1745599858331,-500.0,0.0003041,2]
[358978225,1745599858341,-2174.39,0.0003041,2]
[358978226,1745599858351,-500.0,0.0003041,2]
[358978227,1745599858361,-500.0,0.0003041,2]
[358978228,1745599858371,-500.0,0.0003041,2]
[358978229,1745599858381,-500.0,0.0003041,2]
[358978230,1745599858390,-459.12295147,0.0003041,2]
[358978231,1745599858400,-511.12461942,0.0003041,2]
[358978232,1745599858410,-618.66,0.0003041,2]
[358978233,1745599858420,-1022.7,0.0003041,2]
[358978234,1745599858430,-500.0,0.0003041,2]
[358978235,1745599858440,-1010.9,0.0003041,2]
[358978236,1745599858451,-500.0,0.0003041,2]
[358978237,1745599858462,-151.0,0.0003041,7]
[358978238,1745599858473,-151.0,0.0003041,7]
[358978239,1745599858482,-500.0,0.0003041,2]
[358978240,1745599858491,-793.11,0.0003041,2]
[358978241,1745599858501,-500.0,0.0003041,2]
[358978242,1745599858511,-151.0,0.0003041,7]
[358978243,1745599858522,-1133.88,0.0003041,2]
[358978244,1745599858533,-870.76,0.0003041,2]
[358978245,1745599858544,-1068.57,0.0003041,2]
[358978246,1745599858556,-593.05,0.0003041,2]
[358978247,1745599858566,-500.0,0.0003041,2]
[358978248,1745599858576,-500.0,0.0003041,2]
[358978249,1745599858586,-500.0,0.0003041,2]
[358978250,1745599858595,-957.32,0.0003041,2]
[358978251,1745599858605,-598.96594199,0.0003041,2]
[358978252,1745599858615,-500.0,0.0003041,2]
[358978253,1745599858626,-625.0,0.0003041,2]
[358978254,1745599858636,-587.37648499,0.0003041,2]
[358978255,1745599858645,-500.0,0.0003041,2]
[358978256,1745599858656,-664.41,0.0003041,2]
[358978257,1745599858665,-537.48670232,0.0003041,2]
[358978258,1745599858676,-500.0,0.0003041,2]
[358978259,1745599858686,-525.37,0.0003041,2]
[358978260,1745599858695,-584.17,0.0003041,2]
[358978261,1745599858704,-500.0,0.0003041,2]
[358978262,1745599858714,-933.52,0.0003041,2]
[358978263,1745599858724,-500.0,0.0003041,2]
[358978264,1745599858733,-522.59,0.0003041,2]
[358978265,1745599858743,-881.92,0.0003041,2]
[358978266,1745599858752,-500.0,0.0003041,2]
[358978267,1745599858762,-500.0,0.0003041,2]
[358978268,1745599858771,-500.0,0.0003041,2]
[358978269,1745599858783,-952.28,0.0003041,2]
[358978270,1745599858796,-760.95,0.0003041,2]
[358978271,1745599858807,-500.0,0.0003041,2]
[358978272,1745599858817,-523.49,0.0003041,2]
[358978273,1745599858828,-813.21,0.0003041,2]
[358978274,1745599858840,-500.0,0.0003041,2]
[358978275,1745599858850,-500.0,0.0003041,2]
[358978276,1745599858861,-152.452022,0.0003041,7]
[358978277,1745599858872,-500.0,0.0003041,2]
[358978278,1745599858882,-500.0,0.0003041,2]
[358978279,1745599858894,-1101.22,0.0003041,2]
[358978280,1745599858906,-882.98,0.0003041,2]
[358978281,1745599858917,-500.0,0.0003041,2]
[358978282,1745599858928,-500.0,0.0003041,2]
[358978283,1745599858938,-1642.986175,0.0003041,2]
[358978284,1745599858948,-500.0,0.0003041,2]
[358978285,1745599858959,-754.68,0.0003041,2]
[358978286,1745599858971,-205.71904918,0.0003041,2]
[358978287,1745599858982,-500.0,0.0003041,2]
[358978288,1745599858993,-500.0,0.0003041,2]
[358978289,1745599859003,-500.0,0.0003041,2]
[358978290,1745599859013,-500.0,0.0003041,2]
[358978291,1745599859023,-653.44,0.0003041,2]
[358978292,1745599859034,-758.04,0.0003041,2]
[358978293,1745599859045,-500.0,0.0003041,2]
[358978294,1745599859056,-523.73,0.0003041,2]
[358978295,1745599859066,-500.0,0.0003041,2]
[358978296,1745599859076,-793.45,0.0003041,2]
[358978297,1745599859087,-747.79,0.0003041,2]
[358978298,1745599859098,-1653.303149,0.0003041,2]
[358978299,1745599859109,-1097.7,0.0003041,2]
[358978300,1745599859120,-516.15,0.0003041,2]
[358978301,1745599859130,-500.0,0.0003041,2]
[358978302,1745599859141,-500.0,0.0003041,2]
[358978303,1745599859151,-500.0,0.0003041,2]
[358978304,1745599859163,-838.33,0.0003041,2]
[358978305,1745599859174,-801.35,0.0003041,2]
[358978306,1745599859184,-886.75,0.0003041,2]
[358978307,1745599859194,-500.0,0.0003041,2]
[358978308,1745599859203,-963.57,0.0003041,2]
[358978309,1745599859213,-906.14,0.0003041,2]
[358978310,1745599859222,-596.75,0.0003041,2]
[358978311,1745599859232,-151.0,0.0003041,7]
[358978312,1745599859243,-517.79685938,0.0003041,2]
[358978313,1745599859253,-539.38,0.0003041,2]
[358978314,1745599859263,-500.0,0.0003041,2]
[358978315,1745599859273,-500.0,0.0003041,2]
[358978316,1745599859282,-272.34739305,0.0003041,2]
[358978317,1745599859292,-500.0,0.0003041,2]
[358978318,1745599859302,-519.52,0.0003041,2]
[358978319,1745599859312,-571.05,0.0003041,2]
[358978320,1745599859321,-500.0,0.0003041,2]
[358978321,1745599859331,-500.0,0.0003041,2]
[358978322,1745599859341,-725.26,0.0003041,2]
[358978323,1745599859351,-500.0,0.0003041,2]
[358978324,1745599859360,-1036.47,0.0003041,2]
[358978325,1745599859370,-772.02,0.0003041,2]
[358978326,1745599859380,-500.0,0.0003041,2]
[358978327,1745599859389,-672.16,0.0003041,2]
[358978328,1745599859399,-500.0,0.0003041,2]
[358978329,1745599859408,-500.0,0.0003041,2]
[358978330,1745599859419,-500.0,0.0003041,2]
[358978331,1745599859428,-500.0,0.0003041,2]
[358978332,1745599859438,-500.0,0.0003041,2]
[358978333,1745599859448,-500.0,0.0003041,2]
[358978334,1745599859457,-1338.54,0.0003041,2]
[358978335,1745599859467,-500.0,0.0003041,2]
[358978336,1745599859477,-636.3,0.0003041,2]
[358978337,1745599859487,-500.0,0.0003041,2]
[358978338,1745599859496,-2654.69,0.0003041,2]
[358978339,1745599859506,-500.0,0.0003041,2]
[358978340,1745599859515,-500.0,0.0003041,2]
[358978341,1745599859525,-866.37,0.0003041,2]
[358978342,1745599859535,-500.0,0.0003041,2]
[358978343,1745599859544,-500.0,0.0003041,2]
[358978344,1745599859554,-292.03,0.0003041,2]
[358978345,1745599859563,-592.45875097,0.0003041,2]
[358978346,1745599859573,-500.0,0.0003041,2]
[358978347,1745599859582,-500.0,0.0003041,2]
[358978348,1745599859592,-182.863717,0.0003041,7]
[358978349,1745599859601,-500.0,0.0003041,2]
[358978350,1745599859611,-520.74135844,0.0003041,2]
[358978351,1745599859621,-500.0,0.0003041,2]
[358978352,1745599859631,-500.0,0.0003041,2]
[358978353,1745599859641,-510.03721358,0.0003041,2]
[358978354,1745599859652,-500.0,0.0003041,2]
[358978355,1745599859661,-182.863717,0.0003041,7]
[358978356,1745599859671,-632.54,0.0003041,2]
[358978357,1745599859681,-790.17,0.0003041,2]
[358978358,1745599859690,-500.0,0.0003041,2]
[358978359,1745599859699,-500.0,0.0003041,2]
[358978360,1745599859708,-500.0,0.0003041,2]
[358978361,1745599859718,-1128.15,0.0003041,2]
[358978362,1745599859727,-228.49430612,0.0003041,2]
[358978363,1745599859736,-500.0,0.0003041,2]
[358978364,1745599859746,-500.0,0.0003041,2]
[358978365,1745599859755,-500.0,0.0003041,2]
[358978366,1745599859764,-1884.25,0.0003041,2]
[358978367,1745599859774,-549.59,0.0003041,2]
[358978368,1745599859783,-151.0,0.0003041,7]
[358978369,1745599859801,-500.0,0.0003041,2]
[358978370,1745599859810,-510.88844777,0.0003041,2]
[358978371,1745599859820,-1195.88,0.0003041,2]
[358978372,1745599859829,-151.0,0.0003041,7]
[358978373,1745599859947,-996.53,0.0003041,2]
[358978374,1745599859957,-500.0,0.0003041,2]
[358978375,1745599859967,-500.0,0.0003041,2]
[358978376,1745599859978,-515.46726727,0.0003041,2]
[358978377,1745599859987,-500.0,0.0003041,2]
[358978378,1745599859997,-500.0,0.0003041,2]
[358978379,1745599860008,-614.63,0.0003041,2]
[358978380,1745599860018,-500.0,0.0003041,2]
[358978381,1745599860028,-500.0,0.0003041,2]
[358978382,1745599860038,-1967.02,0.0003041,2]
[358978383,1745599860047,-500.0,0.0003041,2]
[358978384,1745599860056,-500.0,0.0003041,2]
[358978385,1745599860066,-500.0,0.0003041,2]
[358978386,1745599860076,-2817.71,0.0003041,2]
[358978387,1745599860086,-500.0,0.0003041,2]
[358978388,1745599860095,-500.0,0.0003041,2]
[358978389,1745599860104,-151.0,0.0003041,7]
[358978390,1745599860113,-500.0,0.0003041,2]
[358978391,1745599860123,-500.0,0.0003041,2]
[358978392,1745599860135,-585.26572592,0.0003041,2]
[358978393,1745599860146,-500.0,0.0003041,2]
[358978394,1745599860156,-1685.06,0.0003041,2]
[358978395,1745599860166,-151.0,0.0003041,7]
[358978396,1745599860176,-937.03,0.0003041,2]
[358978397,1745599860185,-500.0,0.0003041,2]
[358978398,1745599860194,-151.0,0.0003041,7]
[358978399,1745599860204,-500.0,0.0003041,2]
[358978400,1745599860215,-990.82,0.0003041,2]
[358978401,1745599860224,-500.0,0.0003041,2]
[358978402,1745599860234,-500.0,0.0003041,2]
[358978403,1745599860244,-500.0,0.0003041,2]
[358978404,1745599860253,-1231.85,0.0003041,2]
[358978405,1745599860263,-500.0,0.0003041,2]
[358978406,1745599860272,-949.46,0.0003041,2]
[358978407,1745599860282,-500.0,0.0003041,2]
[358978408,1745599860291,-500.0,0.0003041,2]
[358978409,1745599860301,-518.65802727,0.0003041,2]
[358978410,1745599860310,-500.0,0.0003041,2]
[358978411,1745599860319,-772.93,0.0003041,2]
[358978412,1745599860328,-500.0,0.0003041,2]
[358978413,1745599860337,-500.0,0.0003041,2]
[358978414,1745599860346,-500.0,0.0003041,2]
[358978415,1745599860356,-649.08,0.0003041,2]
[358978416,1745599860365,-645.19,0.0003041,2]
[358978417,1745599860374,-500.0,0.0003041,2]
[358978418,1745599860383,-500.0,0.0003041,2]
[358978419,1745599860393,-500.0,0.0003041,2]
[358978420,1745599860402,-500.0,0.0003041,2]
[358978421,1745599860411,-500.0,0.0003041,2]
[358978422,1745599860421,-579.10548,0.0003041,7]
[358978423,1745599860430,-500.0,0.0003041,2]
[358978424,1745599860440,-500.0,0.0003041,2]
[358978425,1745599860449,-500.0,0.0003041,2]
[358978426,1745599860460,-660.2,0.0003041,2]
[358978427,1745599860469,-151.0,0.0003041,7]
[358978428,1745599860479,-579.10548,0.0003041,7]
[358978429,1745599860489,-500.0,0.0003041,2]
[358978430,1745599860498,-500.0,0.0003041,2]
[358978431,1745599860508,-500.0,0.0003041,2]
[358978432,1745599860518,-500.0,0.0003041,2]
[358978433,1745599860527,-500.0,0.0003041,2]
[358978434,1745599860536,-500.0,0.0003041,2]
[358978435,1745599860546,-918.44,0.0003041,2]
[358978436,1745599860555,-500.0,0.0003041,2]
[358978437,1745599860565,-542.54,0.0003041,2]
[358978438,1745599860574,-500.0,0.0003041,2]
[358978439,1745599860584,-1114.71,0.0003041,2]
[358978440,1745599860593,-500.0,0.0003041,2]
[358978441,1745599860603,-154.197118,0.0003041,7]
[358978442,1745599860612,-586.90492225,0.0003041,2]
[358978443,1745599860622,-508.41,0.0003041,2]
[358978444,1745599860631,-942.23,0.0003041,2]
[358978445,1745599860641,-548.71,0.0003041,2]
[358978446,1745599860650,-500.0,0.0003041,2]
[358978447,1745599860660,-500.0,0.0003041,2]
[358978448,1745599860669,-570.26,0.0003041,2]
[358978449,1745599860680,-500.0,0.0003041,2]
[358978450,1745599860690,-500.0,0.0003041,2]
[358978451,1745599860699,-1003.55,0.0003041,2]
[358978452,1745599860708,-564.21574373,0.0003041,2]
[358978453,1745599860718,-958.21,0.0003041,2]
[358978454,1745599860728,-1082.5,0.0003041,2]
[358978455,1745599860737,-670.3,0.0003041,2]
[358978456,1745599860747,-500.0,0.0003041,2]
[358978457,1745599860757,-500.0,0.0003041,2]
[358978458,1745599860766,-156.34320295,0.0003041,2]
[358978459,1745599860776,-808.52,0.0003041,2]
[358978460,1745599860786,-500.0,0.0003041,2]
[358978461,1745599860798,-500.0,0.0003041,2]
[358978462,1745599860808,-960.51,0.0003041,2]
[358978463,1745599860817,-500.0,0.0003041,2]
[358978464,1745599860826,-707.89,0.0003041,2]
[358978465,1745599860837,-500.0,0.0003041,2]
[358978466,1745599860846,-500.0,0.0003041,2]
[358978467,1745599860855,-500.0,0.0003041,2]
[358978468,1745599860865,-568.10583732,0.0003041,2]
[358978469,1745599860875,-500.0,0.0003041,2]
[358978470,1745599860883,-500.0,0.0003041,2]
[358978471,1745599860893,-513.8382107,0.0003041,2]
[358978472,1745599860902,-708.09,0.0003041,2]
[358978473,1745599860911,-500.0,0.0003041,2]
[358978474,1745599860920,-500.86,0.0003041,2]
[358978475,1745599860931,-500.0,0.0003041,2]
[358978476,1745599860941,-500.0,0.0003041,2]
[358978477,1745599860950,-552.09718626,0.0003041,2]
[358978478,1745599860960,-500.0,0.0003041,2]
[358978479,1745599860968,-581.76409556,0.0003041,2]
[358978480,1745599860978,-529.29,0.0003041,2]
[358978481,1745599860987,-766.01,0.0003041,2]
[358978482,1745599860996,-500.0,0.0003041,2]
[358978483,1745599861007,-581.64628648,0.0003041,2]
[358978484,1745599861019,-1055.72,0.0003041,2]
[358978485,1745599861030,-500.0,0.0003041,2]
[358978486,1745599861041,-500.0,0.0003041,2]
[358978487,1745599861051,-629.88219425,0.0003041,2]
[358978488,1745599861062,-910.22,0.0003041,2]
[358978489,1745599861072,-500.0,0.0003041,2]
[358978490,1745599861082,-500.0,0.0003041,2]
[358978491,1745599861093,-500.0,0.0003041,2]
[358978492,1745599861104,-151.0,0.0003041,7]
[358978493,1745599861113,-500.0,0.0003041,2]
[358978494,1745599861124,-500.0,0.0003041,2]
[358978495,1745599861134,-500.0,0.0003041,2]
[358978496,1745599861144,-1008.08,0.0003041,2]
[358978497,1745599861155,-501.26,0.0003041,2]
[358978498,1745599861167,-151.0,0.0003041,7]
[358978499,1745599861177,-573.25,0.0003041,2]
[358978500,1745599861186,-500.0,0.0003041,2]
[358978501,1745599861196,-698.95,0.0003041,2]
[358978502,1745599861206,-500.0,0.0003041,2]
[358978503,1745599861216,-500.0,0.0003041,2]
[358978504,1745599861227,-545.88,0.0003041,2]
[358978505,1745599861237,-576.48,0.0003041,2]
[358978506,1745599861247,-240.40763222,0.0003041,2]
[358978507,1745599861256,-1896.31,0.0003041,2]
[358978508,1745599861268,-500.0,0.0003041,2]
[358978509,1745599861277,-500.0,0.0003041,2]
[358978510,1745599861286,-500.0,0.0003041,2]
[358978511,1745599861296,-500.0,0.0003041,2]
[358978512,1745599861307,-373.99875856,0.0003041,2]
[358978513,1745599861318,-566.52,0.0003041,2]
[358978514,1745599861329,-500.0,0.0003041,2]
[358978515,1745599861339,-1071.29,0.0003041,2]
[358978516,1745599861349,-715.3,0.0003041,2]
[358978517,1745599861360,-758.06,0.0003041,2]
[358978518,1745599861370,-500.0,0.0003041,2]
[358978519,1745599861380,-544.75486638,0.0003041,2]
[358978520,1745599861390,-812.96,0.0003041,2]
[358978521,1745599861400,-525.25,0.0003041,2]
[358978522,1745599861410,-1799.78,0.0003041,2]
[358978523,1745599861421,-151.0,0.0003041,7]
[358978524,1745599861431,-500.0,0.0003041,2]
[358978525,1745599861441,-500.0,0.0003041,2]
[358978526,1745599861451,-500.0,0.0003041,2]
[358978527,1745599861461,-932.79,0.0003041,2]
[358978528,1745599861472,-500.0,0.0003041,2]
[358978529,1745599861482,-510.93,0.0003041,2]
[358978530,1745599861493,-500.0,0.0003041,2]
[358978531,1745599861504,-548.87511888,0.0003041,2]
[358978532,1745599861514,-500.0,0.0003041,2]
[358978533,1745599861525,-500.0,0.0003041,2]
[358978534,1745599861535,-669.03,0.0003041,2]
[358978535,1745599861546,-1170.9,0.0003041,2]
[358978536,1745599861556,-500.0,0.0003041,2]
[358978537,1745599861566,-500.0,0.0003041,2]
[358978538,1745599861576,-500.0,0.0003041,2]
[358978539,1745599861585,-760.54,0.0003041,2]
[358978540,1745599861595,-500.0,0.0003041,2]
[358978541,1745599861606,-500.0,0.0003041,2]
[358978542,1745599861617,-1775.25,0.0003041,2]
[358978543,1745599861627,-646.88,0.0003041,2]
[358978544,1745599861638,-5169.89,0.0003041,2]
[358978545,1745599861648,-543.59305698,0.0003041,2]
[358978546,1745599861657,-794.06,0.0003041,2]
[358978547,1745599861667,-979.12,0.0003041,2]
[358978548,1745599861678,-588.95,0.0003041,2]
[358978549,1745599861688,-554.07,0.0003041,2]
[358978550,1745599861698,-569.70628129,0.0003041,2]
[358978551,1745599861708,-500.0,0.0003041,2]
[358978552,1745599861717,-500.0,0.0003041,2]
[358978553,1745599861728,-1039.35,0.0003041,2]
[358978554,1745599861738,-151.0,0.0003041,7]
[358978555,1745599861748,-500.0,0.0003041,2]
[358978556,1745599861758,-500.0,0.0003041,2]
[358978557,1745599861768,-377.36224764,0.0003041,2]
[358978558,1745599861778,-550.28840902,0.0003041,2]
[358978559,1745599861791,-500.0,0.0003041,2]
[358978560,1745599861801,-765.99,0.0003041,2]
[358978561,1745599861812,-552.32,0.0003041,2]
[358978562,1745599861823,-1434.94,0.0003041,2]
[358978563,1745599861834,-948.3,0.0003041,2]
[358978564,1745599861845,-500.0,0.0003041,2]
[358978565,1745599861857,-500.0,0.0003041,2]
[358978566,1745599861867,-500.0,0.0003041,2]
[358978567,1745599861877,-933.87,0.0003041,2]
[358978568,1745599861887,-500.0,0.0003041,2]
[358978569,1745599861897,-500.0,0.0003041,2]
[358978570,1745599861907,-1160.83,0.0003041,2]
[358978571,1745599861916,-616.99997512,0.0003041,2]
[358978572,1745599861927,-500.0,0.0003041,2]
[358978573,1745599861937,-500.0,0.0003041,2]
[358978574,1745599861946,-500.0,0.0003041,2]
[358978575,1745599861956,-636.99,0.0003041,2]
[358978576,1745599861967,-500.0,0.0003041,2]
[358978577,1745599861977,-560.9618911,0.0003041,2]
[358978578,1745599861986,-500.0,0.0003041,2]
[358978579,1745599861996,-500.0,0.0003041,2]
[358978580,1745599862005,-671.52,0.0003041,2]
[358978581,1745599862015,-500.0,0.0003041,2]
[358978582,1745599862025,-500.0,0.0003041,2]
[358978583,1745599862034,-507.43,0.0003041,2]
[358978584,1745599862045,-500.0,0.0003041,2]
[358978585,1745599862054,-500.0,0.0003041,2]
[358978586,1745599862065,-1854.8,0.0003041,2]
[358978587,1745599862075,-319.38972636,0.0003041,2]
[358978588,1745599862085,-500.0,0.0003041,2]
[358978589,1745599862094,-598.47599956,0.0003041,2]
[358978590,1745599862104,-515.35,0.0003041,2]
[358978591,1745599862114,-500.0,0.0003041,2]
[358978592,1745599862125,-500.0,0.0003041,2]
[358978593,1745599862134,-500.0,0.0003041,2]
[358978594,1745599862144,-500.0,0.0003041,2]
[358978595,1745599862154,-500.0,0.0003041,2]
[358978596,1745599862164,-889.04,0.0003041,2]
[358978597,1745599862174,-811.56,0.0003041,2]
[358978598,1745599862184,-893.7,0.0003041,2]
[358978599,1745599862193,-500.0,0.0003041,2]
[358978600,1745599862203,-500.0,0.0003041,2]
[358978601,1745599862213,-500.0,0.0003041,2]
[358978602,1745599862223,-1101.13,0.0003041,2]
[358978603,1745599862233,-907.73,0.0003041,2]
[358978604,1745599862243,-500.0,0.0003041,2]
[358978605,1745599862253,-608.32,0.0003041,2]
[358978606,1745599862264,-531.07,0.0003041,2]
[358978607,1745599862274,-1093.95,0.0003041,2]
[358978608,1745599862284,-500.0,0.0003041,2]
[358978609,1745599862294,-552.29,0.0003041,2]
[358978610,1745599862304,-500.0,0.0003041,2]
[358978611,1745599862314,-500.0,0.0003041,2]
[358978612,1745599862324,-678.22,0.0003041,2]